Cogmind - Beta 15 --- EXPLORER MODE // 2025.07.18 @ 22:54:38 // Winter2019/RPGLIKE Player: User15V Result: Self-destructed Performance ------------- Evolutions (8) 4000 Regions Visited (10) 2000 Robots Destroyed (132) 660 Value Destroyed (5991) 5991 Prototype IDs (50) 1000 Alien Tech Used (2) 400 Bonus (4807) 4807 TOTAL SCORE: 18858 Bonus ------- High Alert Combat Kills 868 Follower Combat Kills 3259 Registered with UFD 300 Scanned by Researcher 500 Friendly Fire -120 Cogmind --------- Core Integrity 742/1800 Matter 22/400 Energy 220/220 System Corruption 0% Temperature Cool (0) Movement Walking (105) Location -2/Testing Parts ------- > --- POWER (2) -------- Light Antimatter Reactor Micro Antimatter Reactor > --- PROPULSION (4) --- Biometal Leg Myomer Exoskeleton > --- UTILITY (12) ----- Scrap Suit Cooling System Machine Analyzer Experimental Terrain Scanner Advanced Weapon Cycler Experimental Hardlight Generator Tech Extrapolator Advanced Dynamic Insulation System High-powered Tractor Beam > --- WEAPON (5) ------- Overtuned Barrage Gun Overtuned Barrage Gun Overtuned Barrage Gun Overtuned Barrage Gun Z-bomb Delivery System > --- INVENTORY (7) ---- SHELL Armor Smartbomb Launcher Improved Remote Datajack Improved Plasma Cutter Peak State ------------ > --- POWER ------------ Light Antimatter Reactor Micro Antimatter Reactor > --- PROPULSION ------- Biometal Leg Myomer Exoskeleton > --- UTILITY ---------- Scrap Suit Cooling System Machine Analyzer Experimental Terrain Scanner Advanced Weapon Cycler Experimental Hardlight Generator Tech Extrapolator Advanced Dynamic Insulation System High-powered Tractor Beam > --- WEAPON ----------- Overtuned Barrage Gun Overtuned Barrage Gun Overtuned Barrage Gun Overtuned Barrage Gun Z-bomb Delivery System > --- INVENTORY -------- SHELL Armor Smartbomb Launcher Improved Remote Datajack Improved Plasma Cutter [Rating: 149] Favorites ----------- Power Micro Nuclear Core Engine Light Ion Engine Power Core Micro Nuclear Core Reactor Light Antimatter Reactor Propulsion Antigrav System Leg Overtuned Flexi-carbon Leg Hover Unit Antigrav System Utility Cooling System Device Cooling System Processor Machine Analyzer Protection Improved Powered Armor Weapon Overtuned Barrage Gun Energy Gun EM Pulse Gun Ballistic Gun Overtuned Barrage Gun Ballistic Cannon Light Cannon Launcher Smartbomb Launcher Special Weapon Improved Remote Datajack Impact Weapon Powered Hammer Piercing Weapon Plasma Lance Build | -11 -10 -10 -8 -6 -5 -4 -3 -3 -2 -2 ------- Run | Yrd Mat Sub Scr Fac Fac Fac Res Qua Res Tes Slots Evolved 19 | 4 . 1 1 9 1 2 1 . . . Power 1 | . . . . 1 . . . . . . Propulsion 3 | 1 . . . 2 . . . . . . Utility 11 | 2 . . 1 5 1 1 1 . . . Weapon 4 | 1 . 1 . 1 . 1 . . . . Parts Attached 62 | 4 5 1 11 10 6 3 6 6 2 8 Power 5 | . 1 . . 2 . 1 1 . . . Engine . | . . . . . . . . . . . Core 3 | . 1 . . 2 . . . . . . Reactor 2 | . . . . . . 1 1 . . . Propulsion 20 | 1 2 . 3 3 4 . 3 2 . 2 Treads . | . . . . . . . . . . . Leg 5 | 1 . . 2 . . . . . . 2 Wheel . | . . . . . . . . . . . Hover 15 | . 2 . 1 3 4 . 3 2 . . Flight . | . . . . . . . . . . . Utility 19 | 2 1 . 3 4 2 . 2 2 . 3 Device 13 | 2 1 . 3 2 2 . . 2 . 1 Storage . | . . . . . . . . . . . Processor 3 | . . . . 2 . . 1 . . . Hackware . | . . . . . . . . . . . Protection 3 | . . . . . . . 1 . . 2 Artifact . | . . . . . . . . . . . Weapon 18 | 1 1 1 5 1 . 2 . 2 2 3 Energy Gun 3 | . . . 1 . . . . . 1 1 Energy Cannon . | . . . . . . . . . . . Ballistic Gun 5 | 1 . . 2 1 . . . 1 . . Ballistic Cannon 1 | . . 1 . . . . . . . . Launcher 2 | . . . . . . . . . 1 1 Special Weapon 5 | . 1 . 1 . . 1 . 1 . 1 Impact Weapon 1 | . . . 1 . . . . . . . Slashing Weapon . | . . . . . . . . . . . Piercing Weapon 1 | . . . . . . 1 . . . . Special Melee Weapon . | . . . . . . . . . . . Unidentified Prototypes 9 | . . . . . . 1 . 2 . 6 Corrupted Parts 1 | 1 . . . . . . . . . . System Corruption 1 | 1 . . . . . . . . . . Parts Lost 1 | . 1 . . . . . . . . . Power 1 | . 1 . . . . . . . . . Propulsion . | . . . . . . . . . . . Utility . | . . . . . . . . . . . Weapon . | . . . . . . . . . . . Highest Loss Streak 1 | . 1 . . . . . . . . . To Critical Strikes . | . . . . . . . . . . . Average Backups 3 | . 1 1 2 2 5 5 4 4 4 4 Power . | . . . . . . . . . . . Propulsion . | . . . . . 1 . . . . . Utility . | . . . . . . . . . . . Weapon 2 | . 1 1 2 1 3 3 2 2 2 2 Tool/Special . | . . . . . . . . . . . Unused Backups 8 | 4 2 . 1 . . . 1 . . . Power 2 | 1 1 . . . . . . . . . Propulsion 3 | 1 1 . 1 . . . . . . . Utility 1 | 1 . . . . . . . . . . Weapon 1 | 1 . . . . . . . . . . Tool/Special 1 | . . . . . . . 1 . . . Average Slot Usage (%) 88 | . 96 100 93 77 87 92 92 85 85 79 Core 6 | . 4 11 10 9 10 7 3 . . . Reactor 2 | . . . . . . 1 4 8 8 8 Leg 4 | . 3 . 12 7 . . . . . 2 Hover 12 | . 20 22 8 6 18 18 17 9 8 5 Device 28 | . 34 33 31 21 28 32 27 27 30 28 Processor 7 | . . . . 9 10 9 11 13 13 10 Protection 1 | . 2 . . . . . 3 4 4 2 Energy Gun 3 | . 12 11 5 . . . . . 2 1 Ballistic Gun 12 | . 9 . 9 15 15 13 13 15 14 14 Ballistic Cannon 1 | . . 10 5 . . . . . . . Special Weapon 2 | . 3 11 6 . . 2 4 2 . . Impact Weapon 2 | . . . 4 5 5 3 . . . . Piercing Weapon 1 | . . . . . . . 4 2 2 2 Peak Build Rating 149 | 10 14 15 45 71 91 104 120 134 137 149 Average Rating 74 | 7 12 14 32 65 80 96 112 127 134 135 On Entrance 67 | 4 10 14 15 45 68 91 104 119 134 137 Naked Turns . | . . . . . . . . . . . Heaviest Build 77 | 10 12 14 21 33 35 45 58 63 64 77 Greatest Support 143 | 25 25 22 56 56 54 59 62 67 67 143 Greatest Overweight (x) 3 | . 1 . 1 1 . . . 3 . 1 Average Overweight (x) . | . . . . . . . . . . . Largest Inventory Capacity 7 | 4 4 4 4 6 6 7 7 7 7 7 Average Capacity 5 | 4 4 4 4 5 6 6 7 7 7 7 Most Carried 7 | 2 3 2 4 6 6 6 6 7 7 7 Average Carried 3 | . 1 1 2 2 5 5 4 5 5 6 Final Capacity 7 | 4 4 4 4 6 6 7 7 7 7 7 Final Carried 7 | . 2 1 4 5 5 5 3 6 5 7 Class Distribution -------------------- 50% | Hacker-Scout 23% | Hacker-Scrapper 7% | Hacker-Mutant 6% | Hacker-Skirmisher 6% | Scavenger-Skirmisher 4% | Scavenger-Mutant Dominant Class ---------------- Hacker-Mutant | -10/Materials Scavenger-Skirmisher | -10/Subcaves Hacker-Scrapper | -8/Scraptown Hacker-Scrapper | -6/Factory Hacker-Scout | -5/Factory Hacker-Scout | -4/Factory Hacker-Scout | -3/Research Hacker-Scout | -3/Quarantine Hacker-Scout | -2/Research Hacker-Scout | -2/Testing Resources | -11 -10 -10 -8 -6 -5 -4 -3 -3 -2 -2 ----------- Run | Yrd Mat Sub Scr Fac Fac Fac Res Qua Res Tes Matter Collected 4818 | 267 139 61 64 886 252 628 442 401 728 950 Remotely 3709 | . . . . 692 252 392 442 253 728 950 Salvage Created 6421 | 149 612 65 32 1265 194 775 664 312 688 1665 Parts 328 | 9 28 2 5 59 26 39 40 17 49 54 Haulers Intercepted 1 | . 1 . . . . . . . . . Recyclers Shooed 8 | . 1 . . . 1 . 3 . 3 . Parts Field Recycled . | . . . . . . . . . . . Retrieved Matter . | . . . . . . . . . . . Parts Self-Destructed . | . . . . . . . . . . . Prevented . | . . . . . . . . . . . Kills | -11 -10 -10 -8 -6 -5 -4 -3 -3 -2 -2 ------- Run | Yrd Mat Sub Scr Fac Fac Fac Res Qua Res Tes Combat Hostiles Destroyed 95 | . 8 1 . 15 8 11 9 5 17 21 Melee 9 | . . . . . . . 2 . 4 3 Guns 74 | . 8 . . 14 8 11 7 5 8 13 Cannons 1 | . . 1 . . . . . . . . AOE 9 | . . . . . . . . . 4 5 Classes Destroyed 21 | 2 4 1 1 6 1 . 1 2 1 2 Worker 9 | . 3 . . . 1 . 2 . 1 2 Builder 5 | . . . . 2 1 . 1 . 1 . Tunneler 5 | 3 . . . 1 . . 1 . . . Hauler 1 | . 1 . . . . . . . . . Recycler 6 | 1 . . . 3 . 1 . . . 1 Operator 1 | . . . . 1 . . . . . . Drone 4 | . . . . . . . . . . 4 Watcher 12 | . 2 . . 3 . 1 1 1 3 1 Swarmer 29 | . . . . 6 4 5 2 2 6 4 Cutter 3 | . . . . . . . . . 3 . Grunt 20 | . 8 . . 5 . 1 1 . 3 2 Brawler 3 | . . . . . 1 . 2 . . . Researcher 2 | . . . . . . . . 1 . 1 Sentry 10 | . . . . 1 2 2 . . 2 3 Demolisher 2 | . . . . . . . 2 . . . Specialist 3 | . . . . . . . . 3 . . Hunter 13 | . . . . 1 1 2 1 . 3 5 Programmer 4 | . . . . 2 . 1 1 . . . Q-Series 3 | . . . . . . . . . . 3 Subdweller 1 | . . 1 . . . . . . . . Scientist 1 | . . . 1 . . . . . . . Best Kill Streak 11 | 2 4 1 1 11 4 6 3 3 7 7 Combat Bots Only 6 | . 2 1 . 6 4 4 2 3 5 5 Max Kills in Single Turn 3 | 1 1 1 1 1 2 2 2 1 3 2 Gunslinging 1 | . . . . . 1 1 . . . 1 Exploded 2 | . . . . . . . . . 2 2 Melee 1 | . . . . . . . 1 . 1 1 Uniques/NPCs Destroyed . | . . . . . . . . . . . Combat | -11 -10 -10 -8 -6 -5 -4 -3 -3 -2 -2 -------- Run | Yrd Mat Sub Scr Fac Fac Fac Res Qua Res Tes Hostile Shots Fired 615 | . 52 2 40 98 9 46 48 39 85 196 Missed 219 | . 18 . 14 36 5 18 14 17 37 60 Hits 396 | . 34 2 26 62 4 28 34 22 48 136 Melee 12 | . . . . . . . 1 . 3 8 Projectile 384 | . 34 2 26 62 4 28 33 22 45 128 AOE 11 | . . . . . . . 2 9 . . Critical Strikes 17 | . 1 . 1 1 . 1 5 . 1 7 Damage Taken 4915 | 22 333 29 275 370 49 396 691 269 710 1771 Core 3566 | 17 250 26 213 289 40 316 496 184 475 1260 Absorbed by Shields 390 | . . . . . . . . . . 390 Redirected to Core 3160 | 17 197 10 188 228 30 259 480 169 445 1137 Redirected to Shielding 2 | . 2 . . . . . . . . . Ignored by Resistances 3129 | 13 202 16 165 247 28 233 398 161 413 1253 Regen/Repaired (Parts) 32 | . . . . 4 13 . . 3 . 12 Core Remaining (%) 79 | 97 . . 36 60 100 93 . 88 . . Volleys Fired 331 | 9 36 3 3 57 18 47 31 23 43 61 Largest 5 | 2 2 2 2 3 3 3 3 5 5 4 Hottest 195 | 60 100 70 60 90 90 90 90 120 195 175 Shots Fired 1008 | 18 69 6 5 171 54 141 93 78 154 219 Gun 982 | 18 66 3 4 171 54 141 93 71 149 212 Cannon 3 | . . 3 . . . . . . . . Launcher 10 | . . . . . . . . . 5 5 Special 13 | . 3 . 1 . . . . 7 . 2 Kinetic 914 | 9 33 3 4 171 54 141 93 71 127 208 Thermal 3 | . 3 . . . . . . . . . Explosive 10 | . . . . . . . . . 5 5 Electromagnetic 71 | 9 33 3 . . . . . . 22 4 Robot Hit Streak 37 | 12 14 6 11 18 13 27 28 14 11 37 Robot Miss Streak 7 | 1 2 . . 4 3 3 3 2 4 7 Penetration Max . | . . . . . . . . . . . Secondary Targets 30 | . 1 . 1 8 2 4 3 2 4 5 Max Gunslinging Chain 1 | . 1 . 1 1 1 1 1 1 1 1 Shots Hit Robots 801 | 14 51 6 5 120 40 106 86 60 120 193 Core Hits 303 | 5 25 2 3 42 17 38 37 18 49 67 Critical Kills 11 | . . . . 4 . . 1 . 3 3 Critical Parts Destroyed 21 | . 1 . . 7 1 3 1 1 3 4 Critical Strikes 35 | . 2 . . 11 1 3 2 1 8 7 Destroy 30 | . 1 . . 10 1 2 2 1 6 7 Corrupt 1 | . 1 . . . . . . . . . Smash 2 | . . . . 1 . 1 . . . . Impale 2 | . . . . . . . . . 2 . Melee Attacks 99 | . . . 6 6 3 2 25 3 22 32 Impact 17 | . . . 6 6 3 2 . . . . Slashing . | . . . . . . . . . . . Piercing 82 | . . . . . . . 25 3 22 32 Sneak Attacks 9 | . . . . 1 1 . 3 . 2 2 Combat Hostiles . | . . . . . . . . . . . Follow-up Attacks . | . . . . . . . . . . . Damage Inflicted 19700 | 211 881 91 87 2809 861 2274 2422 1038 3844 5182 Guns 13891 | 190 690 34 87 2664 799 2191 1490 1038 1806 2902 Cannons 57 | . . 57 . . . . . . . . Explosions 2416 | 21 191 . . . . . . . 1033 1171 Melee 3336 | . . . . 145 62 83 932 . 1005 1109 Ramming . | . . . . . . . . . . . Kinetic 13072 | 73 285 57 87 2664 799 2191 1490 1038 1517 2871 Thermal 212 | 21 191 . . . . . . . . . Explosive 2204 | . . . . . . . . . 1033 1171 Electromagnetic 876 | 117 405 34 . . . . . . 289 31 Impact 290 | . . . . 145 62 83 . . . . Slashing . | . . . . . . . . . . . Piercing 3046 | . . . . . . . 932 . 1005 1109 Highest Corruption 2 | 1 2 2 1 . . . . . . . Average Corruption 1 | 1 1 2 1 . . . . . . . Corruption Purged . | . . . . . . . . . . . Corruption Blocked . | . . . . . . . . . . . Effects 9 | . 8 1 . . . . . . . . Message Errors 1 | . 1 . . . . . . . . . Matter Fused 3 | . 3 . . . . . . . . . Heat Flow Errors 2 | . 1 1 . . . . . . . . Energy Discharges 1 | . 1 . . . . . . . . . Data Loss (major) 1 | . 1 . . . . . . . . . Alerts 1 | . 1 . . . . . . . . . Overload Shots . | . . . . . . . . . . . Overflow Damage 763 | . . . . 105 47 41 153 . 195 222 Projectiles . | . . . . . . . . . . . Explosions 221 | . . . . . . . . . 106 115 Melee 542 | . . . . 105 47 41 153 . 89 107 Knockbacks 2 | . . 1 . 1 . . . . . . Impact 1 | . . . . 1 . . . . . . Kinetic 1 | . . 1 . . . . . . . . Secondary . | . . . . . . . . . . . Self-Inflicted Damage 22 | 22 . . . . . . . . . . Shots 1 | 1 . . . . . . . . . . Rammed . | . . . . . . . . . . . Targets Rammed . | . . . . . . . . . . . Kicked . | . . . . . . . . . . . Crushed . | . . . . . . . . . . . Highest Temperature 350 | 12 133 121 4 135 98 301 350 256 319 172 Average Temperature 78 | 12 35 68 3 51 42 88 119 97 135 56 Received Heat Transfer 869 | . 264 . 96 75 . 63 172 . 72 127 Effects 2 | . . . . . . . 1 . 1 . Energy Bleed 2 | . . . . . . . 1 . 1 . Siege Activations . | . . . . . . . . . . . Martial Activations . | . . . . . . . . . . . Shielding Activations . | . . . . . . . . . . . Robots Disrupted . | . . . . . . . . . . . Combat Hostiles . | . . . . . . . . . . . Robots Corrupted 2 | . . . . 1 . . . . 1 . Combat Hostiles 2 | . . . . 1 . . . . 1 . Parts Fried 7 | . 1 . . 1 1 . . . 4 . Impact Corruptions 4 | . . . . 2 1 1 . . . . Robots Melted . | . . . . . . . . . . . Combat Hostiles . | . . . . . . . . . . . Parts Melted . | . . . . . . . . . . . Heat Transferred 350 | 50 300 . . . . . . . . . Parts Sabotaged . | . . . . . . . . . . . Parts Stolen . | . . . . . . . . . . . Parts Stripped . | . . . . . . . . . . . Power Chain Reactions 4 | 1 3 . . . . . . . . . Alert | -11 -10 -10 -8 -6 -5 -4 -3 -3 -2 -2 ------- Run | Yrd Mat Sub Scr Fac Fac Fac Res Qua Res Tes Maximum Alert Level 3 | . . . . . 1 3 3 3 2 2 Low Security (%) 44 | 100 100 . . 100 74 14 . . . . Level 1 17 | . . . . . 25 17 23 . 10 61 Level 2 18 | . . . . . . 29 23 13 89 38 Level 3 19 | . . . . . . 38 53 86 . . Level 4 . | . . . . . . . . . . . Level 5 . | . . . . . . . . . . . High Security . | . . . . . . . . . . . Max Security . | . . . . . . . . . . . Peak Influence 1051 | 5 55 . . 185 249 867 1051 1007 661 503 Initial 429 | . . . . . 15 51 320 429 380 271 Average 347 | 2 11 . . 66 144 549 639 855 551 367 Influence Increases 6392 | 20 243 . . 536 504 1106 1456 1118 687 722 Destroy 0b10 Robot/C 3780 | . 160 . . 360 300 620 860 680 360 440 Destroy 0b10 Robot/NC 305 | 20 30 . . 50 30 40 45 40 30 20 Destroy Leader 764 | . 36 . . 86 68 170 160 106 86 52 Allied During Kill 824 | . . . . 8 74 234 310 178 20 . Successful Hack 85 | . . . . 24 16 . . 4 41 . Disable Machine 68 | . . . . 4 8 . 8 12 . 36 Destroy Structure 431 | . 17 . . 4 8 42 58 98 150 54 Lose Combat Pursuer 135 | . . . . . . . 15 . . 120 Influence Decreases 5894 | 20 243 . . 493 403 428 1262 1232 947 866 Entered New Map 2103 | . . . . . 28 93 502 587 522 371 Time Decay 3051 | 20 243 . . 493 375 315 540 345 225 495 Lost Ally 740 | . . . . . . 20 220 300 200 . Squads Dispatched 31 | . . . . 4 . 4 5 8 5 5 Investigation 4 | . . . . 1 . 1 1 . 1 . Extermination 8 | . . . . 1 . 1 1 2 1 2 Reinforcement 16 | . . . . 1 . 1 2 6 3 3 Assault 1 | . . . . . . . 1 . . . Garrison 2 | . . . . 1 . 1 . . . . Intercept . | . . . . . . . . . . . Searches Triggered . | . . . . . . . . . . . Construction Impeded 2 | . . . . . . . 1 . 1 . Haulers Reinforced 2 | . . . . . . 1 1 . . . Active Scanning Responses . | . . . . . . . . . . . Cargo Convoy Interrupts . | . . . . . . . . . . . Stealth | -11 -10 -10 -8 -6 -5 -4 -3 -3 -2 -2 --------- Run | Yrd Mat Sub Scr Fac Fac Fac Res Qua Res Tes Distress Signals 11 | . . . . 1 . 3 3 2 2 . Communications Jammed . | . . . . . . . . . . . Distress Signals . | . . . . . . . . . . . Times Spotted 190 | . 11 1 3 24 16 30 39 8 24 34 Peak Tracking Total 13 | . 2 1 7 4 4 5 6 4 5 13 Tactical Retreats 4 | . . . . . . . 1 . . 3 Traps | -11 -10 -10 -8 -6 -5 -4 -3 -3 -2 -2 ------- Run | Yrd Mat Sub Scr Fac Fac Fac Res Qua Res Tes Traps Triggered 5 | . 1 . . 1 . 1 . . . 2 Indirectly . | . . . . . . . . . . . Trap Hack Attempts . | . . . . . . . . . . . Triggered . | . . . . . . . . . . . Disarmed . | . . . . . . . . . . . Reprogrammed . | . . . . . . . . . . . Reused . | . . . . . . . . . . . Traps Extracted . | . . . . . . . . . . . Installed . | . . . . . . . . . . . Triggered . | . . . . . . . . . . . Machines | -11 -10 -10 -8 -6 -5 -4 -3 -3 -2 -2 ---------- Run | Yrd Mat Sub Scr Fac Fac Fac Res Qua Res Tes Machines Disabled 20 | . . . 2 1 2 . 2 3 . 10 Max in Single Turn 1 | . . . 1 1 1 . 1 1 . 1 Garrison Access 8 | . . . . 2 3 1 . 1 . 1 Machines Repaired . | . . . . . . . . . . . Machines Dismantled 2 | . . . . . . . . . . 2 Machines Sabotaged . | . . . . . . . . . . . Overloaded Fab Kills . | . . . . . . . . . . . Hacking | -11 -10 -10 -8 -6 -5 -4 -3 -3 -2 -2 --------- Run | Yrd Mat Sub Scr Fac Fac Fac Res Qua Res Tes Machines Accessed 27 | . . . 2 4 6 5 4 2 2 2 Terminals 12 | . . . . . 2 4 2 1 2 1 Fabricators 5 | . . . . 2 1 . 2 . . . Repair Stations . | . . . . . . . . . . . Recycling Units . | . . . . . . . . . . . Scanalyzers . | . . . . . . . . . . . Garrison Access 8 | . . . . 2 3 1 . 1 . 1 Total Hacks 64 | . . . 5 10 11 9 10 12 4 3 Successful 41 | . . . 5 9 6 3 6 8 3 1 Failed 23 | . . . . 1 5 6 4 4 1 2 Catastrophic 4 | . . . . . 2 . 1 . 1 . Database Lockouts . | . . . . . . . . . . . Manual 14 | . . . . . 3 3 1 4 3 . Terminals 30 | . . . . . 4 7 3 10 4 2 Fabricators 17 | . . . . 7 3 . 7 . . . Repair Stations . | . . . . . . . . . . . Recycling Units . | . . . . . . . . . . . Scanalyzers . | . . . . . . . . . . . Garrison Access 12 | . . . . 3 4 2 . 2 . 1 Terminal Hacks 18 | . . . 5 . 1 2 2 5 3 . Record 4 | . . . 4 . . . . . . . Part Schematic 3 | . . . . . . . . 3 . . Open DSF 2 | . . . . . . 1 1 . . . Level Access Points 3 | . . . . . 1 1 . 1 . . Branch Access Points 3 | . . . . . . . 1 . 2 . Fabricator Index 1 | . . . . . . . . . 1 . Registered Components 1 | . . . . . . . . 1 . . Proto ID Catalog 1 | . . . 1 . . . . . . . Fabricator Hacks 13 | . . . . 7 2 . 4 . . . Network Status 1 | . . . . 1 . . . . . . Load Schematic 5 | . . . . 3 1 . 1 . . . Build 7 | . . . . 3 1 . 3 . . . Repair Station Hacks . | . . . . . . . . . . . Recycling Unit Hacks . | . . . . . . . . . . . Scanalyzer . | . . . . . . . . . . . Garrison Access Hacks 8 | . . . . 2 3 1 . 1 . 1 Seal Access 8 | . . . . 2 3 1 . 1 . 1 Unauthorized Hacks 2 | . . . . . . . . 2 . . Terminals 2 | . . . . . . . . 2 . . Track 1 | . . . . . . . . 1 . . Botnet 1 | . . . . . . . . 1 . . Fabricators . | . . . . . . . . . . . Repair Stations . | . . . . . . . . . . . Recycling Units . | . . . . . . . . . . . Scanalyzers . | . . . . . . . . . . . Garrison Access . | . . . . . . . . . . . Data Cores Recovered . | . . . . . . . . . . . Used . | . . . . . . . . . . . Hacking Detections 16 | . . . . 3 2 3 4 1 2 1 Full Trace Events 3 | . . . . 1 . 1 . . 1 . Feedback Events . | . . . . . . . . . . . Feedback Blocked . | . . . . . . . . . . . Robot Schematics Acquired 9 | . . . . . . . . 8 . 1 Robots Built 6 | . . . . . . . 6 . . . Authchips . | . . . . . . . . . . . Time 136 | . . . . . . . 136 . . . Total Robot Build Rating 48 | . . . . . . . 48 . . . Part Schematics Acquired 50 | . . . 1 5 . 6 4 26 4 4 Parts Built 4 | . . . . 3 1 . . . . . Authchips . | . . . . . . . . . . . Time 356 | . . . . 230 76 . 50 . . . Total Part Build Rating 19 | . . . . 14 5 . . . . . Parts Repaired . | . . . . . . . . . . . Time . | . . . . . . . . . . . Parts Recycled . | . . . . . . . . . . . Recycled Matter . | . . . . . . . . . . . Retrieved Matter . | . . . . . . . . . . . Retrieved Components . | . . . . . . . . . . . Parts Scanalyzed . | . . . . . . . . . . . Part Schematics Acquired . | . . . . . . . . . . . Parts Damaged . | . . . . . . . . . . . Bothacking | -11 -10 -10 -8 -6 -5 -4 -3 -3 -2 -2 ------------ Run | Yrd Mat Sub Scr Fac Fac Fac Res Qua Res Tes Used RIF Installer . | . . . . . . . . . . . Robots Hacked 2 | . . . . . . . . 1 . 1 Non-combat . | . . . . . . . . . . . Combat 2 | . . . . . . . . 1 . 1 Robot Hacks Applied 2 | . . . . . . . . 1 . 1 parse_system 2 | . . . . . . . . 1 . 1 Relay Couplers Released . | . . . . . . . . . . . Fabnet Peak Effective % . | . . . . . . . . . . . Robots Rewired 3 | . . . . . . 3 . . . . Allies Hacked 3 | . . . . . . 1 2 . . . Hacks Repelled . | . . . . . . . . . . . Allies | -11 -10 -10 -8 -6 -5 -4 -3 -3 -2 -2 -------- Run | Yrd Mat Sub Scr Fac Fac Fac Res Qua Res Tes Total Allies 68 | . . . . 10 10 15 33 . . . Largest Group 51 | . . . . 10 18 30 51 46 10 . Highest-Rated Group 764 | . . . . 100 180 392 764 620 94 . Highest-Rated Ally 64 | . . . . 10 10 56 64 56 39 . Total Orders . | . . . . . . . . . . . Ally Attacks 732 | . . . . 10 47 158 291 202 24 . Total Damage 10895 | . . . . 69 522 2069 4300 3615 320 . Kills 116 | . . . . 3 11 26 38 36 2 . Allies Corrupted 11 | . . . . . . 1 1 9 . . Allies Melted . | . . . . . . . . . . . Intel | -11 -10 -10 -8 -6 -5 -4 -3 -3 -2 -2 ------- Run | Yrd Mat Sub Scr Fac Fac Fac Res Qua Res Tes Active Infowar (turns) 6216 | 29 467 166 1445 910 575 436 731 470 318 669 Terrain 6216 | 29 467 166 1445 910 575 436 731 470 318 669 Structural 489 | . . . . 114 375 . . . . . Seismic 1219 | 21 467 166 565 . . . . . . . Machine Analysis 4102 | . . . . 903 575 436 731 470 318 669 Robot Analysis Total . | . . . . . . . . . . . Derelict Logs Recovered 1 | . . 1 . . . . . . . . Drone Launches . | . . . . . . . . . . . Drone Recoveries . | . . . . . . . . . . . Exploration | -11 -10 -10 -8 -6 -5 -4 -3 -3 -2 -2 ------------- Run | Yrd Mat Sub Scr Fac Fac Fac Res Qua Res Tes Turns Passed 6446 | 93 633 166 1445 910 575 436 731 470 318 669 Spaces Moved 5828 | 25 490 168 1595 537 565 452 613 589 257 537 Core 10 | . 4 . 5 . . . . 1 . . Treads . | . . . . . . . . . . . Legs 1244 | 25 44 . 905 129 . . . . . 141 Wheels . | . . . . . . . . . . . Hover 4574 | . 442 168 685 408 565 452 613 588 257 396 Flight . | . . . . . . . . . . . Fastest Speed 48 | 120 56 56 56 52 48 48 48 48 56 56 Average Speed 64 | 120 62 56 75 90 49 48 48 54 56 70 Slowest Speed 200 | 120 120 56 100 140 52 48 48 200 56 106 Overloaded Moves . | . . . . . . . . . . . Propulsion Burnouts . | . . . . . . . . . . . Robots Hopped 2 | . . . . . . 2 . . . . Potential Cave-ins 2 | . . . . . . . . 2 . . Cave-ins Triggered . | . . . . . . . . . . . Exploration Rate (%) 33 | 3 77 21 86 12 18 13 17 62 11 53 Regions Visited 10 Branch Regions 4 Pre-discovered Areas 1 | . . . 1 . . . . . . . Known Exits Taken 9 | 1 1 . 1 1 1 1 1 1 1 . Unknown Exits Taken 1 | . . 1 . . . . . . . . Scrap Searched 6 | . . . 6 . . . . . . . Spaces Dug 18 | . 2 . 2 3 2 . 6 . 1 2 Terrain Destroyed 112 | 1 14 . 2 4 2 2 6 . 54 27 Melee 16 | . . . 2 3 2 . 6 . 1 2 Projectile 5 | . 2 . . 1 . 2 . . . . AOE 91 | 1 12 . . . . . . . 53 25 Terrain Rammed . | . . . . . . . . . . . Walls Destroyed . | . . . . . . . . . . . Machines Disabled . | . . . . . . . . . . . Actions | -11 -10 -10 -8 -6 -5 -4 -3 -3 -2 -2 --------- Run | Yrd Mat Sub Scr Fac Fac Fac Res Qua Res Tes Total 8118 | 70 744 233 1826 908 845 646 997 717 380 752 Wait 1493 | 29 205 62 182 254 213 111 294 67 13 63 Move 5815 | 24 489 167 1594 536 564 448 612 588 256 537 Hop 1 | . . . . . . 1 . . . . Pick Up 59 | 4 6 . 15 9 5 3 7 7 . 3 Fast Attach 7 | . . . . . 1 . . 2 . 4 Attach 41 | 4 4 1 6 9 2 2 2 4 3 4 Detach 9 | . . . . 2 . . . . 3 4 Swap 34 | . 1 . 7 3 4 1 5 5 1 7 Drop 48 | . 3 . 13 1 6 2 6 7 1 9 Fire 331 | 9 36 3 3 57 18 47 31 23 43 61 Melee 99 | . . . 6 6 3 2 25 3 22 32 Ram . | . . . . . . . . . . . Kick . | . . . . . . . . . . . Crush . | . . . . . . . . . . . Escape Stasis 13 | . . . . 13 . . . . . . Rewire 8 | . . . . . . 8 . . . . Trap . | . . . . . . . . . . . Miscellaneous 160 | . . . . 18 29 21 15 11 38 28 Route ------- -11/Scrapyard -10/Materials (discovered 4 exits: *Mat x2 / *Min / *Sub) -10/Subcaves -8/Scraptown (discovered 2 exits: *Fac x2) -6/Factory -5/Factory (discovered 4 exits: *Fac x4) -4/Factory (discovered 4 exits: *Res x4) -3/Research (discovered 2 exits: *Qua x2) -3/Quarantine -2/Research (discovered 2 exits: *Tes x2) -2/Testing (discovered 1 exit: Acc) History --------- Turn | Location | Event 1 | -11/Scrapyard | Upgraded with Propulsion slot (x1) 1 | -11/Scrapyard | Upgraded with Utility slot (x2) 1 | -11/Scrapyard | Upgraded with Weapon slot (x1) 1 | -11/Scrapyard | Identified exit to Materials 1 | -11/Scrapyard | Discovered exit to Materials (range 1) 94 | -11/Scrapyard | Entered Materials 181 | -10/Materials | Identified exit to Mines 181 | -10/Materials | Discovered exit to Mines (range 12) 309 | -10/Materials | Build established: Hacker-Mutant 412 | -10/Materials | Identified exit to Materials 412 | -10/Materials | Discovered exit to Materials (range 3) 515 | -10/Materials | Discovered exit to Materials (range 4) 605 | -10/Materials | Identified exit to Subcaves 605 | -10/Materials | Discovered exit to Subcaves (range 9) 727 | -10/Materials | Entered Subcaves 728 | -10/Subcaves | Approached by a straggling Scientist 729 | -10/Subcaves | Reached level 2 729 | -10/Subcaves | Upgraded with Weapon slot (x1) 737 | -10/Subcaves | Learned Materials stockpile data 829 | -10/Subcaves | Shifting Twisted Machinery released Scrap Shield 832 | -10/Subcaves | Shifting Twisted Machinery released Scrap Shield 875 | -10/Subcaves | Scientist uncovered a shortcut to Scraptown 893 | -10/Subcaves | Entered Scraptown 893 | -8/Scraptown | System corruption cleaned by C-Scrubber 895 | -8/Scraptown | Reached level 3 961 | -8/Scraptown | Visited UFD Registry 961 | -8/Scraptown | Registered with UFD as "Megacore" 993 | -8/Scraptown | Visited IN-MT5's Study 1022 | -8/Scraptown | Build established: Scavenger-Skirmisher 1066 | -8/Scraptown | Identified exit to Factory 1066 | -8/Scraptown | Discovered exit to Factory (range 7) 1098 | -8/Scraptown | Visited Bundlers 1178 | -8/Scraptown | Visited Curators Association 1196 | -8/Scraptown | Visited Abandonware Association 1200 | -8/Scraptown | Learned abandonware demo "OVRCLOCK.EXE" 1206 | -8/Scraptown | Learned abandonware demo "MELTYB.EXE" 1206 | -8/Scraptown | Learned abandonware demo "REVENGE.EXE" 1372 | -8/Scraptown | Visited Infowarlord's Domain 1376 | -8/Scraptown | Found Exp. Terrain Scanner 1419 | -8/Scraptown | Build established: Hacker-Skirmisher 1425 | -8/Scraptown | Visited Scrap Suit Storage 1428 | -8/Scraptown | Found Scrap Suit 1438 | -8/Scraptown | Visited Supply Room 1445 | -8/Scraptown | Visited Modified Component R&D 1458 | -8/Scraptown | Upgraded with Utility slot (x1) 1475 | -8/Scraptown | Discovered exit to Factory (range 16) 1500 | -8/Scraptown | Visited Chapter 10 1514 | -8/Scraptown | Visited Junk Cannon Lab 1529 | -8/Scraptown | Visited Science Guys 1584 | -8/Scraptown | Visited Assassins FH 1597 | -8/Scraptown | Visited Symbiants 1604 | -8/Scraptown | Visited Spacefarers 1771 | -8/Scraptown | Build established: Hacker-Scrapper 2099 | -8/Scraptown | Visited Artisan Demo Area 2289 | -8/Scraptown | Attacked by Scraptown defenders 2314 | -8/Scraptown | Core integrity fell below 50% 2338 | -8/Scraptown | Entered Factory 2339 | -6/Factory | Core integrity fell below 50% 2340 | -6/Factory | Reached level 4 2340 | -6/Factory | Reached level 5 2340 | -6/Factory | Reached level 6 2340 | -6/Factory | Reached level 7 2340 | -6/Factory | Reached level 8 2340 | -6/Factory | Reached level 9 2340 | -6/Factory | Reached level 10 2340 | -6/Factory | Reached level 11 2340 | -6/Factory | Reached level 12 2340 | -6/Factory | Reached level 13 2340 | -6/Factory | Reached level 14 2340 | -6/Factory | Reached level 15 2340 | -6/Factory | Reached level 16 2340 | -6/Factory | Reached level 17 2344 | -6/Factory | Upgraded with Power slot (x1) 2344 | -6/Factory | Upgraded with Propulsion slot (x2) 2344 | -6/Factory | Upgraded with Utility slot (x5) 2344 | -6/Factory | Upgraded with Weapon slot (x1) 2421 | -6/Factory | Tech Extrapolator generated special schematic: Deep Structural Scanner 2597 | -6/Factory | Fabricated IN-MT5's Pitchfork "Insurrection" (x1) 2670 | -6/Factory | Identified exit to Factory 2670 | -6/Factory | Discovered exit to Factory (range 29) 2744 | -6/Factory | Reached level 18 2835 | -6/Factory | Reprogrammed and armed K-01 Serf 2839 | -6/Factory | Reprogrammed and armed K-01 Serf 2954 | -6/Factory | Reprogrammed and armed K-01 Serf 2963 | -6/Factory | Reprogrammed and armed K-01 Serf 2991 | -6/Factory | Reprogrammed and armed K-01 Serf 2995 | -6/Factory | Garrison activated, responded to threat 3044 | -6/Factory | Reprogrammed and armed K-01 Serf 3050 | -6/Factory | Reprogrammed and armed K-01 Serf 3104 | -6/Factory | Fabricated IN-MT5's Pitchfork "Insurrection" (x1) 3133 | -6/Factory | Fabricated Deep Structural Scanner (x1) 3207 | -6/Factory | Reprogrammed and armed K-01 Serf 3210 | -6/Factory | Reprogrammed and armed K-01 Serf 3211 | -6/Factory | Reprogrammed and armed K-01 Serf 3248 | -6/Factory | Entered another Factory area 3248 | -5/Factory | Accompanied by 10 allies 3250 | -5/Factory | Reached level 19 3307 | -5/Factory | Build established: Hacker-Scout 3358 | -5/Factory | Reprogrammed and armed K-01 Serf 3372 | -5/Factory | Reprogrammed and armed K-01 Serf 3374 | -5/Factory | Upgraded with Utility slot (x1) 3391 | -5/Factory | Reached level 20 3452 | -5/Factory | Reprogrammed and armed K-01 Serf 3455 | -5/Factory | Reprogrammed and armed K-01 Serf 3457 | -5/Factory | Reprogrammed and armed K-01 Serf 3460 | -5/Factory | Reprogrammed and armed K-01 Serf 3462 | -5/Factory | Reprogrammed and armed K-01 Serf 3566 | -5/Factory | Fabricated IN-MT5's Pitchfork "Insurrection" (x1) 3570 | -5/Factory | Reprogrammed and armed K-01 Serf 3599 | -5/Factory | Reprogrammed and armed K-01 Serf 3603 | -5/Factory | Reprogrammed and armed K-01 Serf 3644 | -5/Factory | Allied Derelicts emerged from ambush trap array 3704 | -5/Factory | Identified exit to Factory 3823 | -5/Factory | Entered another Factory area 3823 | -4/Factory | Accompanied by 18 allies 3825 | -4/Factory | Reached level 21 3840 | -4/Factory | Identified exit to DSF 3855 | -4/Factory | Spotted B-86 Titan 3859 | -4/Factory | Reached level 22 3866 | -4/Factory | Allies destroyed B-86 Titan 3878 | -4/Factory | Reprogrammed and armed K-01 Serf 3881 | -4/Factory | Garrison activated, responded to threat 3921 | -4/Factory | Identified exit to Research 3926 | -4/Factory | Reached level 23 3950 | -4/Factory | Reprogrammed and armed K-01 Serf 3966 | -4/Factory | Reprogrammed and armed K-01 Serf 3985 | -4/Factory | Reprogrammed and armed K-01 Serf 4006 | -4/Factory | Upgraded with Utility slot (x1) 4006 | -4/Factory | Upgraded with Weapon slot (x1) 4016 | -4/Factory | Reprogrammed and armed K-01 Serf 4056 | -4/Factory | Reprogrammed and armed K-01 Serf 4072 | -4/Factory | Reprogrammed and armed K-01 Serf 4089 | -4/Factory | P-70 Sage assimilated allied Assassin 7a 4091 | -4/Factory | Reached level 24 4093 | -4/Factory | Reprogrammed and armed K-01 Serf 4121 | -4/Factory | Reprogrammed and armed K-01 Serf 4185 | -4/Factory | Reprogrammed and armed K-01 Serf 4221 | -4/Factory | Reprogrammed and armed K-01 Serf 4228 | -4/Factory | Reprogrammed and armed K-01 Serf 4259 | -4/Factory | Entered Research 4259 | -3/Research | Accompanied by 28 allies 4261 | -3/Research | Reached level 25 4306 | -3/Research | Reprogrammed and armed K-01 Serf 4310 | -3/Research | Reprogrammed and armed K-01 Serf 4311 | -3/Research | Reprogrammed and armed K-01 Serf 4329 | -3/Research | Reprogrammed and armed K-01 Serf 4333 | -3/Research | Found Imp. Powered Armor 4351 | -3/Research | Reprogrammed and armed K-01 Serf 4351 | -3/Research | Reached level 26 4363 | -3/Research | Reprogrammed and armed K-01 Serf 4418 | -3/Research | Identified exit to Quarantine 4418 | -3/Research | Discovered exit to Quarantine (range 7) 4478 | -3/Research | Reprogrammed and armed K-01 Serf 4481 | -3/Research | Reprogrammed and armed K-01 Serf 4518 | -3/Research | Reprogrammed and armed K-01 Serf 4526 | -3/Research | Reprogrammed and armed K-01 Serf 4527 | -3/Research | Reprogrammed and armed K-01 Serf 4528 | -3/Research | Reprogrammed and armed K-01 Serf 4528 | -3/Research | Reprogrammed and armed K-01 Serf 4532 | -3/Research | Reprogrammed and armed K-01 Serf 4534 | -3/Research | Reprogrammed and armed K-01 Serf 4537 | -3/Research | Reprogrammed and armed K-01 Serf 4538 | -3/Research | Reprogrammed and armed K-01 Serf 4540 | -3/Research | Reprogrammed and armed K-01 Serf 4550 | -3/Research | Reprogrammed and armed K-01 Serf 4571 | -3/Research | Reached level 27 4574 | -3/Research | Reprogrammed and armed K-01 Serf 4591 | -3/Research | P-80 Master assimilated allied K-01 Serf 4609 | -3/Research | Reprogrammed and armed K-01 Serf 4611 | -3/Research | Reprogrammed and armed K-01 Serf 4619 | -3/Research | Reprogrammed and armed K-01 Serf 4623 | -3/Research | Reprogrammed and armed K-01 Serf 4631 | -3/Research | Lost 3 allies 4653 | -3/Research | Upgraded with Utility slot (x1) 4681 | -3/Research | Tech Extrapolator generated special schematic: Energy Deflector 4705 | -3/Research | Fabricated S-43 Plague? 4759 | -3/Research | First assault squad dispatched 4789 | -3/Research | Fabricated Y-72 Warden (x2) 4811 | -3/Research | Reprogrammed and armed K-01 Serf 4851 | -3/Research | Lost 3 allies 4879 | -3/Research | Reached level 28 4888 | -3/Research | Reprogrammed and armed K-01 Serf 4893 | -3/Research | Reprogrammed and armed K-01 Serf 4899 | -3/Research | Reprogrammed and armed K-01 Serf 4990 | -3/Research | Entered Quarantine 4990 | -3/Quarantine | Accompanied by 46 allies 4997 | -3/Quarantine | Identified exit to Research 5010 | -3/Quarantine | Tech Extrapolator generated special schematic: Mak. Core Shielding 5010 | -3/Quarantine | Cryocooling Duct disabled 5025 | -3/Quarantine | Ambient heat levels rising (+20) 5025 | -3/Quarantine | Non-combat units ordered to evacuate 5043 | -3/Quarantine | Scanned by Researcher 5052 | -3/Quarantine | Reached level 29 5132 | -3/Quarantine | Lost 10 allies 5149 | -3/Quarantine | Found Alien Artifact 5153 | -3/Quarantine | Identified Subatomic Replicator 5153 | -3/Quarantine | Used Subatomic Replicator to replicate Ovr. Barrage Gun 5162 | -3/Quarantine | Tech Extrapolator generated special schematic: Wartreads 5229 | -3/Quarantine | Lost 5 allies 5336 | -3/Quarantine | Found Alien Artifact 5337 | -3/Quarantine | Identified Terrabomb 5337 | -3/Quarantine | Used Terrabomb 5460 | -3/Quarantine | Entered Research 5460 | -2/Research | Accompanied by 10 allies 5462 | -2/Research | Reached level 30 5475 | -2/Research | Identified exit to Testing 5700 | -2/Research | Reached level 31 5753 | -2/Research | Lost 3 allies 5778 | -2/Research | Entered Testing 5970 | -2/Testing | Found Prototype Energy Gun 5971 | -2/Testing | Identified Hyp. EM Gauss Rifle 6115 | -2/Testing | Found Prototype Protection 6117 | -2/Testing | Identified Med. Regenerative Plating 6120 | -2/Testing | Found Prototype Protection 6121 | -2/Testing | Identified SHELL Armor 6139 | -2/Testing | Identified exit to Access 6139 | -2/Testing | Discovered exit to Access (range 30) 6206 | -2/Testing | Found Prototype Device 6206 | -2/Testing | Identified Exp. Hardlight Generator 6235 | -2/Testing | Found Prototype Leg 6235 | -2/Testing | Identified Myomer Exoskeleton 6265 | -2/Testing | Core integrity fell below 50% 6280 | -2/Testing | Reached level 32 6384 | -2/Testing | Found Prototype Launcher 6384 | -2/Testing | Identified Z-bomb Delivery System 6447 | -2/Testing | Self-destructed Last Messages --------------- 06384_ Acquired Prototype Launcher. 06384_ Identified Z-bomb Delivery System. 06407_ K-01 Serf cleans the Potential Refractor. 06430_ Q804-t destroyed. 06430_ Potential Refractor disabled. 06430_ Destroyed Antigrav System. 06430_ W-44 Eye destroyed. 06432_ K-01 Serf collects debris. 06441_ Q207-w follow-up attacks with Prototype Impact Weapon. 06442_ K-01 Serf collects debris. 06443_ Q207-w follow-up attacks with Prototype Impact Weapon. 06443_ Knocked back. 06444_ K-01 Serf destroyed. 06444_ Switching to secondary target: Q207-w. 06444_ Q207-w destroyed. 06445_ Acquired 12 matter. 06445_ K-01 Serf collects debris. Map ----- +----------------------------------------------------+ | ########## #### ## ###################### | | * ########### ###################### | | ############# ##### ####################? | | ############# ##### ##################### | | ############# "" ##################### | | ############# #### "" ##################### | | #############/#### "T ##################### | | ##### # "" ####################### | | ###"" """""" # "" ####################### | | ###"" """""" # ####################### | | ###"" """""" # k ####################### | | ###S # k "" ####################### | | ###"" """""" # "" ####################### | | ###"" """""" # "" ####################### | | ###"" """""" # "" ####################### | | ##### # """ ######################? | | ##### # " ####################### | | ##### # ## ################ | | ##### # ## ####?########### | | ###########+###### ## ################ | | ## ##### ## ################ | | ## ##### ## ################ | | ## ##### # """ ################ | | ## ##### + """ ################ | | ## ############ ]! # """ ################ | | ## ############ ] @ *# """ ################ | | ## ################### = # """ ################ | | ## ################### # """ ################ | | ## ########### # # ################ | | ## ########### """ # ###################### | | ## ########### """ # ###################### | | ## ########### """ # ###################### | | ## ########### + ###################### | | ## ###############+### ###################### | | ############ ### ###################### | | < ############ ### ###################### | | ############ ### ###################### | | ########### ###################### | | #####+############## ## ################ | | # ####### ## ""############# | | # ####### ## ""############# | | # # # ## S"############# | | # # + + """############# | | # # # ####### """############# | | # # + ####### """############# | | # ########+######## ################ | | # # ### ################ | | ########### ####################### | | ############## """ """ ####################### | | ############## """" " / ####################### | +----------------------------------------------------+ Best States ------------- Heat Dissipation 131 Energy Generation 40 Energy Capacity 220 Matter Stores 400 Matter Capacity 400 Sight Range 20 Terrain Scan Range 30 Terrain Scan Density 710 EM Shielding 4 Corruption Containment 12 Armor Coverage 900 Resistance: KI 35 Resistance: TH 35 Resistance: EX 35 Resistance: EM 35 Resistance: I 35 Resistance: S 35 Resistance: P 35 Utility Shielding 33 Weapon Cycling 25 Evasion (%) 57 Recoil Reduction 4 Offensive Hacking 45 Defensive Hacking 10 Item Schematics ----------------- IN-MT5's Pitchfork "Insurrection" | -8/Scraptown | Archive Deep Structural Scanner | -6/Factory | Extrapolated Mak. Terrain Scanner | -6/Factory | Extrapolated Mak. Power Source | -6/Factory | Extrapolated Mak. Coolant Network | -6/Factory | Extrapolated Beamcaster | -6/Factory | Extrapolated Mak. Thermal Plating | -4/Factory | Extrapolated 0b10 Decoder Chip [Skirmisher] | -4/Factory | Extrapolated Mapping Drone Bay | -4/Factory | Extrapolated Mak. Light Armor Plating | -4/Factory | Extrapolated Hvy. Beamcaster | -4/Factory | Extrapolated Mak. Shrapnel Gun | -4/Factory | Extrapolated Mak. Heavy Armor Plating | -3/Research | Extrapolated Mak. Kinetic Plating | -3/Research | Extrapolated Energy Deflector | -3/Research | Extrapolated Multireflex Exoskeleton | -3/Research | Extrapolated Mic. Antimatter Reactor | -3/Quarantine | Hacked Enh. Nova Cannon | -3/Quarantine | Hacked Hvy. Shield Leg | -3/Quarantine | Hacked Mak. Core Shielding | -3/Quarantine | Extrapolated Exp. Coolant Injector | -3/Quarantine | Archive Exp. Hacking Suite | -3/Quarantine | Archive Exp. Signal Interpreter | -3/Quarantine | Archive Mak. Propulsion Shielding | -3/Quarantine | Extrapolated Wartreads | -3/Quarantine | Extrapolated Gravity Neutralizer | -3/Quarantine | Archive Proton Burst Cannon | -3/Quarantine | Archive Cld. Antimatter Reactor | -3/Quarantine | Archive Hvy. Antimatter Reactor | -3/Quarantine | Archive Imp. Lightning Gun | -3/Quarantine | Archive Cld. Antigrav System | -3/Quarantine | Archive Exp. Optical Array | -3/Quarantine | Archive Exp. Focal Shield | -3/Quarantine | Archive Stealth Drone Bay | -3/Quarantine | Archive Adv. Remote Shield | -3/Quarantine | Archive Mni. Smartbomb Launcher | -3/Quarantine | Archive Vibroblade | -3/Quarantine | Archive Adv. Plasma Rifle | -3/Quarantine | Archive Enh. Multireflex Exoskeleton | -3/Quarantine | Extrapolated Tactical Coordination Suite | -3/Quarantine | Extrapolated Mak. Medium Armor Plating | -3/Quarantine | Extrapolated Mak. Ablative Armor | -3/Quarantine | Extrapolated 0b10 Decoder Chip [Looter] | -2/Research | Extrapolated Mak. Targeting Computer | -2/Research | Extrapolated Mak. Hacking Suite | -2/Research | Extrapolated Mak. System Shield | -2/Research | Extrapolated Mak. System Restoration Module | -2/Testing | Extrapolated Thermal Barrier | -2/Testing | Archive Imp. Quantum Reactor | -2/Testing | Archive Adv. Dynamic Insulation System | -2/Testing | Archive Robot Schematics ------------------ S-43 Plague | -3/Quarantine | Archive R-06 Scavenger | -3/Quarantine | Archive B-74 Champion | -3/Quarantine | Archive M-36 Artificer | -3/Quarantine | Archive X-72 Disruptor | -3/Quarantine | Archive X-77 Beamer | -3/Quarantine | Archive A-27 Freighter | -3/Quarantine | Archive P-80 Master | -3/Quarantine | Archive C-65 Expert | -2/Testing | Archive Fabricated ------------ IN-MT5's Pitchfork "Insurrection" | x1 | -6/Factory IN-MT5's Pitchfork "Insurrection" | x1 | -6/Factory Deep Structural Scanner | x1 | -6/Factory IN-MT5's Pitchfork "Insurrection" | x1 | -5/Factory S-43 Plague | x4 | -3/Research | Preloaded Y-72 Warden | x2 | -3/Research | Preloaded Repaired ---------- Nothing Alien Tech Used ----------------- Subatomic Replicator Terrabomb Achievements -------------- None Challenges ------------ None RPGLIKE | -11 -10 -10 -8 -6 -5 -4 -3 -3 -2 -2 --------- Run | Yrd Mat Sub Scr Fac Fac Fac Res Qua Res Tes Levels Raised 31 | . . 1 1 15 2 4 4 1 2 1 XP Earned 52562 | 6000 950 1000 2274 21991 3261 5637 5908 1741 2497 1303 XP Spent 50995 | 5870 . 1570 1260 20040 2900 8795 4290 3115 3155 . Upgrades 89 | 15 . 3 5 26 1 8 3 15 13 . Power Slot 1 | . . . . 1 . . . . . . Propulsion Slot 3 | 1 . . . 2 . . . . . . Utility Slot 11 | 2 . . 1 5 1 1 1 . . . Weapon Slot 4 | 1 . 1 . 1 . 1 . . . . Core Integrity 24 | . . . 4 4 . 3 . 7 6 . Heat Dissipation 14 | . . . . 3 . . . 6 5 . Energy Generation 1 | . . . . . . . . 1 . . Matter Storage 2 | . . . . . . . . . 2 . Mass Support 3 | 1 . 1 . . . 1 . . . . Inventory Capacity 7 | 4 . . . 2 . 1 . . . . Sight Range 4 | 1 . . . 1 . . 1 1 . . Terrain Scan Density 7 | 3 . 1 . 2 . . 1 . . . Ranged Accuracy 1 | 1 . . . . . . . . . . Hack Attack % 5 | 1 . . . 3 . 1 . . . . Hack Defense % 2 | . . . . 2 . . . . . . Protomatter Created 1593 | . 37 . . 151 281 145 181 175 514 109 Integrity Restored 3175 | . . . . 402 633 429 342 243 868 258 Core 2508 | . . . . 402 433 236 342 243 594 258 Parts 667 | . . . . . 200 193 . . 274 . Protomatter Decayed 1811 | . 37 . . 67 231 273 895 204 104 . Game ------ Seed GlidesysAmuletBeacon Manual? 0 Play Time 01:41:25 Cumulative 1025.2 hours Start 2025.07.18 @ 21:11:47 End 2025.07.18 @ 22:54:38 Sessions 1 Manual Loads 0 Difficulty Explorer Special Mode Winter2019/RPGLIKE Game No. 310 Rogue 104 Adventurer 111 Explorer 95 Win Type - Total 48 Types 22/8/1/7/3/1/1/1/1/3 Lore% 96 Gallery% 99 Achievement% 97 Wizard Run 0 Options --------- Layout 2 ASCII 0 Keyboard 0 Movement Mouse Keybinds 0 Fullscreen 2 Font 24/Smallcaps Map View 50x44 Zoom Use 0% Tactical HUD 1 Map Filters NONE Filters NONE Steam 1 RUN: 3c5d11d9-e591-4377-b4ed-e513f5338ea5